[Event "Titled Tuesday Blitz March 21 Early 2023"]
[White "Jaivardhan Raj"]
[Black "Hernandez Bonilla, Amelia"]
[WhiteFideId "25744437"]
[BlackFideId "3900193"]
[WhiteElo "1772"]
[BlackElo "2198"]
[Result "1-0"]
[Round "06"]
[TimeControl "180+2"]
[Date "2023.03.21"]
[WhiteClock "0:00:16"]
[BlackClock "0:00:02"]

1. e4 {[%clk 0:03:00]}  c5 {[%clk 0:02:59]} 2. Nf3 {[%clk 0:03:00]}  d6 {[%clk 0:02:59]} 3. d4 {[%clk 0:03:00]}  cxd4 {[%clk 0:03:00]} 4. Qxd4 {[%clk 0:03:00]}  Nf6 {[%clk 0:03:00]} 5. c4 {[%clk 0:03:00]}  Nc6 {[%clk 0:03:00]} 6. Qe3 {[%clk 0:03:00]}  e6 {[%clk 0:02:57]} 7. Nc3 {[%clk 0:03:00]}  Be7 {[%clk 0:02:57]} 8. h3 {[%clk 0:03:01]}  O-O {[%clk 0:02:55]} 9. Be2 {[%clk 0:03:02]}  d5 {[%clk 0:02:42]} 10. cxd5 {[%clk 0:03:01]}  exd5 {[%clk 0:02:42]} 11. exd5 {[%clk 0:03:01]}  Nxd5 {[%clk 0:02:42]} 12. Nxd5 {[%clk 0:03:01]}  Qxd5 {[%clk 0:02:42]} 13. O-O {[%clk 0:03:01]}  Bc5 {[%clk 0:02:40]} 14. Qd3 {[%clk 0:02:56]}  Qxd3 {[%clk 0:02:34]} 15. Bxd3 {[%clk 0:02:57]}  Rd8 {[%clk 0:02:33]} 16. Bc2 {[%clk 0:02:56]}  Nb4 {[%clk 0:02:26]} 17. Bb3 {[%clk 0:02:53]}  Bf5 {[%clk 0:02:23]} 18. Ne5 {[%clk 0:02:48]}  Bg6 {[%clk 0:02:14]} 19. Bg5 {[%clk 0:02:40]}  Re8 {[%clk 0:02:06]} 20. Nd7 {[%clk 0:02:37]}  Bd4 {[%clk 0:01:59]} 21. Rad1 {[%clk 0:02:31]}  Bxb2 {[%clk 0:01:58]} 22. Nc5 {[%clk 0:02:28]}  b6 {[%clk 0:01:53]} 23. Nb7 {[%clk 0:02:26]}  h6 {[%clk 0:01:40]} 24. Bh4 {[%clk 0:02:21]}  Bc3 {[%clk 0:01:31]} 25. Nd6 {[%clk 0:02:19]}  Re2 {[%clk 0:01:22]} 26. Bc4 {[%clk 0:02:11]}  Rb2 {[%clk 0:01:14]} 27. Bb3 {[%clk 0:02:07]}  Bd3 {[%clk 0:01:09]} 28. Bxf7+ {[%clk 0:01:55]}  Kh8 {[%clk 0:01:03]} 29. Bd5 {[%clk 0:01:43]}  g5 {[%clk 0:00:54]} 30. Bxg5 {[%clk 0:01:03]}  hxg5 {[%clk 0:00:53]} 31. Bxa8 {[%clk 0:01:02]}  Bxf1 {[%clk 0:00:49]} 32. Kxf1 {[%clk 0:01:01]}  Rxa2 {[%clk 0:00:44]} 33. Nf7+ {[%clk 0:01:00]}  Kg7 {[%clk 0:00:43]} 34. Nxg5 {[%clk 0:01:00]}  a5 {[%clk 0:00:39]} 35. Ne6+ {[%clk 0:00:59]}  Kf6 {[%clk 0:00:38]} 36. Nf4 {[%clk 0:00:58]}  Be5 {[%clk 0:00:32]} 37. Nh5+ {[%clk 0:00:55]}  Kg5 {[%clk 0:00:31]} 38. Ng3 {[%clk 0:00:55]}  a4 {[%clk 0:00:27]} 39. Ne4+ {[%clk 0:00:52]}  Kf4 {[%clk 0:00:25]} 40. g3+ {[%clk 0:00:51]}  Kf5 {[%clk 0:00:22]} 41. Rd8 {[%clk 0:00:43]}  Rc2 {[%clk 0:00:15]} 42. Rf8+ {[%clk 0:00:42]}  Ke6 {[%clk 0:00:14]} 43. Ng5+ {[%clk 0:00:40]}  Ke7 {[%clk 0:00:14]} 44. Rf7+ {[%clk 0:00:38]}  Kd6 {[%clk 0:00:14]} 45. Ne4+ {[%clk 0:00:37]}  Ke6 {[%clk 0:00:13]} 46. Ng5+ {[%clk 0:00:35]}  Kd6 {[%clk 0:00:13]} 47. Rb7 {[%clk 0:00:28]}  Bd4 {[%clk 0:00:12]} 48. Ne4+ {[%clk 0:00:26]}  Ke6 {[%clk 0:00:09]} 49. Ra7 {[%clk 0:00:24]}  b5 {[%clk 0:00:04]} 50. Rh7 {[%clk 0:00:22]}  Nd3 {[%clk 0:00:03]} 51. Rh6+ {[%clk 0:00:22]}  Ke7 {[%clk 0:00:02]} 52. Rh7+ {[%clk 0:00:20]}  Kf8 {[%clk 0:00:02]} 53. Ng5 {[%clk 0:00:17]}  Rxf2+ {[%clk 0:00:01]} 54. Kg1 {[%clk 0:00:17]}  Rf5+ {[%clk 0:00:01]} 55. Kh2 {[%clk 0:00:17]}  Rxg5 {[%clk 0:00:02]} 56. Rd7 {[%clk 0:00:16]} 1-0


[Site "https://www.chess.com"]

[Event "Titled Tuesday Blitz March 21 Early 2023"]
[White "HSH1987"]
[Black "salgadoLO"]
[WhiteElo "2672"]
[BlackElo "2187"]
[Result "1-0"]
[Round "06"]
[TimeControl "180+2"]
[Date "2023.03.21"]
[WhiteClock "0:00:40"]
[BlackClock "0:00:01"]

1. Nf3 {[%clk 0:03:00]}  d5 {[%clk 0:02:56]} 2. g3 {[%clk 0:03:00]}  c6 {[%clk 0:02:52]} 3. Bg2 {[%clk 0:03:01]}  Nf6 {[%clk 0:02:52]} 4. O-O {[%clk 0:03:02]}  h6 {[%clk 0:02:52]} 5. c4 {[%clk 0:02:59]}  Bf5 {[%clk 0:02:50]} 6. cxd5 {[%clk 0:02:56]}  cxd5 {[%clk 0:02:49]} 7. d3 {[%clk 0:02:53]}  Nc6 {[%clk 0:02:48]} 8. Qa4 {[%clk 0:02:50]}  Bd7 {[%clk 0:02:43]} 9. Qb3 {[%clk 0:02:48]}  b6 {[%clk 0:02:33]} 10. Nc3 {[%clk 0:02:46]}  e6 {[%clk 0:02:33]} 11. e4 {[%clk 0:02:45]}  d4 {[%clk 0:02:26]} 12. e5 {[%clk 0:02:21]}  dxc3 {[%clk 0:02:18]} 13. exf6 {[%clk 0:02:21]}  gxf6 {[%clk 0:02:09]} 14. bxc3 {[%clk 0:02:14]}  Rc8 {[%clk 0:02:07]} 15. d4 {[%clk 0:02:12]}  Bg7 {[%clk 0:02:06]} 16. Ba3 {[%clk 0:02:04]}  Bf8 {[%clk 0:02:00]} 17. Bxf8 {[%clk 0:02:02]}  Kxf8 {[%clk 0:01:55]} 18. Rac1 {[%clk 0:01:52]}  Na5 {[%clk 0:01:53]} 19. Qc2 {[%clk 0:01:48]}  Qc7 {[%clk 0:01:51]} 20. Nd2 {[%clk 0:01:44]}  Nc4 {[%clk 0:01:47]} 21. Ne4 {[%clk 0:01:37]}  f5 {[%clk 0:01:31]} 22. Nd2 {[%clk 0:01:34]}  Nxd2 {[%clk 0:01:27]} 23. Qxd2 {[%clk 0:01:35]}  h5 {[%clk 0:01:08]} 24. h4 {[%clk 0:01:25]}  Bc6 {[%clk 0:01:00]} 25. c4 {[%clk 0:01:16]}  Bxg2 {[%clk 0:00:59]} 26. Kxg2 {[%clk 0:01:17]}  Rg8 {[%clk 0:00:51]} 27. Qh6+ {[%clk 0:01:15]}  Ke8 {[%clk 0:00:50]} 28. Qxh5 {[%clk 0:01:06]}  f4 {[%clk 0:00:50]} 29. Qf3 {[%clk 0:01:06]}  Qd6 {[%clk 0:00:26]} 30. d5 {[%clk 0:01:01]}  exd5 {[%clk 0:00:10]} 31. cxd5 {[%clk 0:00:59]}  Rxc1 {[%clk 0:00:08]} 32. Rxc1 {[%clk 0:01:00]}  Kd8 {[%clk 0:00:07]} 33. Rc6 {[%clk 0:00:51]}  Qe5 {[%clk 0:00:04]} 34. g4 {[%clk 0:00:49]}  f5 {[%clk 0:00:03]} 35. g5 {[%clk 0:00:49]}  Re8 {[%clk 0:00:02]} 36. d6 {[%clk 0:00:46]}  Qe4 {[%clk 0:00:02]} 37. Rc7 {[%clk 0:00:45]}  Re6 {[%clk 0:00:01]} 38. Rxa7 {[%clk 0:00:41]}  Rxd6 {[%clk 0:00:01]} 39. Rf7 {[%clk 0:00:40]} 1-0


[Site "https://www.chess.com"]

[Event "Titled Tuesday Blitz March 21 Early 2023"]
[White "Shuvalov, Evgenij"]
[Black "Biriukov, Ilja"]
[WhiteFideId "4187237"]
[BlackFideId "4113373"]
[WhiteElo "2080"]
[BlackElo "2426"]
[Result "0-1"]
[Round "06"]
[TimeControl "180+2"]
[Date "2023.03.21"]
[WhiteClock "0:00:15"]
[BlackClock "0:00:24"]

1. d4 {[%clk 0:03:00]}  Nf6 {[%clk 0:02:59]} 2. c4 {[%clk 0:03:00]}  g6 {[%clk 0:02:59]} 3. Nc3 {[%clk 0:03:00]}  Bg7 {[%clk 0:02:57]} 4. e4 {[%clk 0:03:00]}  d6 {[%clk 0:02:57]} 5. Nf3 {[%clk 0:03:00]}  O-O {[%clk 0:02:55]} 6. Be2 {[%clk 0:03:00]}  Nbd7 {[%clk 0:02:55]} 7. O-O {[%clk 0:02:59]}  e5 {[%clk 0:02:53]} 8. Be3 {[%clk 0:02:58]}  Re8 {[%clk 0:02:52]} 9. d5 {[%clk 0:02:57]}  a5 {[%clk 0:02:50]} 10. Ne1 {[%clk 0:02:54]}  Nc5 {[%clk 0:02:48]} 11. f3 {[%clk 0:02:51]}  Rf8 {[%clk 0:02:46]} 12. Nd3 {[%clk 0:02:50]}  b6 {[%clk 0:02:44]} 13. Nf2 {[%clk 0:02:48]}  Nh5 {[%clk 0:02:41]} 14. g3 {[%clk 0:02:43]}  f5 {[%clk 0:02:39]} 15. exf5 {[%clk 0:02:39]}  gxf5 {[%clk 0:02:38]} 16. f4 {[%clk 0:02:39]}  Nf6 {[%clk 0:02:35]} 17. Kh1 {[%clk 0:02:30]}  Kh8 {[%clk 0:02:28]} 18. Rg1 {[%clk 0:02:27]}  Rg8 {[%clk 0:02:18]} 19. Rc1 {[%clk 0:02:15]}  Bd7 {[%clk 0:02:16]} 20. b3 {[%clk 0:02:12]}  Qe7 {[%clk 0:02:13]} 21. Qd2 {[%clk 0:02:11]}  exf4 {[%clk 0:01:54]} 22. Bxf4 {[%clk 0:02:09]}  Nfe4 {[%clk 0:01:53]} 23. Ncxe4 {[%clk 0:01:57]}  Nxe4 {[%clk 0:01:51]} 24. Nxe4 {[%clk 0:01:57]}  fxe4 {[%clk 0:01:46]} 25. Be3 {[%clk 0:01:50]}  Rae8 {[%clk 0:01:35]} 26. Rcf1 {[%clk 0:01:48]}  Rgf8 {[%clk 0:01:30]} 27. Rxf8+ {[%clk 0:01:47]}  Rxf8 {[%clk 0:01:26]} 28. Rf1 {[%clk 0:01:47]}  Bh3 {[%clk 0:01:19]} 29. Rxf8+ {[%clk 0:01:37]}  Qxf8 {[%clk 0:01:20]} 30. Qd1 {[%clk 0:01:31]}  Qf6 {[%clk 0:01:15]} 31. Kg1 {[%clk 0:01:29]}  Qc3 {[%clk 0:01:11]} 32. Qd2 {[%clk 0:01:17]}  Qxd2 {[%clk 0:01:07]} 33. Bxd2 {[%clk 0:01:18]}  Bd4+ {[%clk 0:01:07]} 34. Kh1 {[%clk 0:01:18]}  Kg7 {[%clk 0:01:06]} 35. Bf4 {[%clk 0:00:56]}  Kg6 {[%clk 0:01:05]} 36. g4 {[%clk 0:00:56]}  Bf2 {[%clk 0:00:57]} 37. Bd1 {[%clk 0:00:33]}  Bf1 {[%clk 0:00:55]} 38. Bc2 {[%clk 0:00:32]}  Bd3 {[%clk 0:00:54]} 39. Bxd3 {[%clk 0:00:29]}  exd3 {[%clk 0:00:54]} 40. Bd2 {[%clk 0:00:30]}  Bh4 {[%clk 0:00:48]} 41. Kg2 {[%clk 0:00:29]}  Bg5 {[%clk 0:00:47]} 42. Bxg5 {[%clk 0:00:27]}  Kxg5 {[%clk 0:00:48]} 43. Kf3 {[%clk 0:00:27]}  d2 {[%clk 0:00:46]} 44. Ke2 {[%clk 0:00:28]}  Kxg4 {[%clk 0:00:47]} 45. Kxd2 {[%clk 0:00:28]}  Kh3 {[%clk 0:00:42]} 46. Ke3 {[%clk 0:00:23]}  Kxh2 {[%clk 0:00:42]} 47. Kf2 {[%clk 0:00:21]}  Kh3 {[%clk 0:00:42]} 48. Kf3 {[%clk 0:00:21]}  h6 {[%clk 0:00:41]} 49. a3 {[%clk 0:00:20]}  Kh4 {[%clk 0:00:38]} 50. Kf4 {[%clk 0:00:20]}  h5 {[%clk 0:00:36]} 51. b4 {[%clk 0:00:19]}  axb4 {[%clk 0:00:34]} 52. axb4 {[%clk 0:00:19]}  Kh3 {[%clk 0:00:34]} 53. Kf3 {[%clk 0:00:17]}  h4 {[%clk 0:00:32]} 54. b5 {[%clk 0:00:17]}  Kh2 {[%clk 0:00:31]} 55. Kg4 {[%clk 0:00:18]}  Kg2 {[%clk 0:00:27]} 56. Kf5 {[%clk 0:00:19]}  h3 {[%clk 0:00:26]} 57. Ke6 {[%clk 0:00:20]}  h2 {[%clk 0:00:27]} 58. Kd7 {[%clk 0:00:20]}  h1=Q {[%clk 0:00:27]} 59. Kxc7 {[%clk 0:00:20]}  Qc1 {[%clk 0:00:26]} 60. Kxd6 {[%clk 0:00:19]}  Qxc4 {[%clk 0:00:26]} 61. Ke5 {[%clk 0:00:18]}  Qxb5 {[%clk 0:00:26]} 62. Ke6 {[%clk 0:00:18]}  Qc4 {[%clk 0:00:25]} 63. Ke5 {[%clk 0:00:17]}  b5 {[%clk 0:00:24]} 64. d6 {[%clk 0:00:18]}  Qc5+ {[%clk 0:00:24]} 65. Ke6 {[%clk 0:00:14]}  b4 {[%clk 0:00:24]} 66. d7 {[%clk 0:00:14]}  Qc6+ {[%clk 0:00:24]} 67. Ke7 {[%clk 0:00:14]}  Qxd7+ {[%clk 0:00:24]} 68. Kxd7 {[%clk 0:00:15]}  b3 {[%clk 0:00:24]} 0-1


[Site "https://www.chess.com"]

[Event "Titled Tuesday Blitz March 21 Early 2023"]
[White "Tanmay Jain"]
[Black "victormago"]
[WhiteFideId "45015481"]
[WhiteElo "2032"]
[BlackElo "2259"]
[Result "1-0"]
[Round "06"]
[TimeControl "180+2"]
[Date "2023.03.21"]
[WhiteClock "0:00:30"]
[BlackClock "0:00:02"]

1. e4 {[%clk 0:03:00]}  c5 {[%clk 0:02:59]} 2. g3 {[%clk 0:03:00]}  d6 {[%clk 0:02:59]} 3. Bg2 {[%clk 0:03:00]}  Nc6 {[%clk 0:02:57]} 4. Ne2 {[%clk 0:03:01]}  g6 {[%clk 0:02:57]} 5. d4 {[%clk 0:03:00]}  cxd4 {[%clk 0:02:57]} 6. Nxd4 {[%clk 0:03:00]}  Bd7 {[%clk 0:02:54]} 7. O-O {[%clk 0:03:00]}  Bg7 {[%clk 0:02:54]} 8. Be3 {[%clk 0:03:00]}  Nf6 {[%clk 0:02:54]} 9. Nc3 {[%clk 0:03:00]}  O-O {[%clk 0:02:54]} 10. h3 {[%clk 0:03:00]}  Rc8 {[%clk 0:02:54]} 11. f4 {[%clk 0:02:55]}  a6 {[%clk 0:02:50]} 12. Nb3 {[%clk 0:02:54]}  b5 {[%clk 0:02:44]} 13. a3 {[%clk 0:02:54]}  Qc7 {[%clk 0:02:36]} 14. Qd2 {[%clk 0:02:50]}  Rfd8 {[%clk 0:02:26]} 15. Rad1 {[%clk 0:02:48]}  Be6 {[%clk 0:01:46]} 16. Qf2 {[%clk 0:02:38]}  Qb8 {[%clk 0:01:41]} 17. Nd5 {[%clk 0:02:31]}  Re8 {[%clk 0:01:13]} 18. c3 {[%clk 0:02:19]}  a5 {[%clk 0:01:04]} 19. Nd4 {[%clk 0:01:43]}  Nxd4 {[%clk 0:01:01]} 20. Bxd4 {[%clk 0:01:43]}  Bxd5 {[%clk 0:00:54]} 21. exd5 {[%clk 0:01:42]}  b4 {[%clk 0:00:53]} 22. axb4 {[%clk 0:01:41]}  axb4 {[%clk 0:00:52]} 23. g4 {[%clk 0:01:38]}  bxc3 {[%clk 0:00:49]} 24. bxc3 {[%clk 0:01:39]}  Qb3 {[%clk 0:00:35]} 25. Bf3 {[%clk 0:01:27]}  Qc4 {[%clk 0:00:31]} 26. g5 {[%clk 0:01:14]}  Nd7 {[%clk 0:00:29]} 27. Bg4 {[%clk 0:01:14]}  Bxd4 {[%clk 0:00:22]} 28. Rxd4 {[%clk 0:01:11]}  Qc7 {[%clk 0:00:21]} 29. c4 {[%clk 0:01:06]}  Rb8 {[%clk 0:00:19]} 30. h4 {[%clk 0:01:04]}  Nc5 {[%clk 0:00:19]} 31. h5 {[%clk 0:01:01]}  e5 {[%clk 0:00:14]} 32. dxe6 {[%clk 0:00:56]}  fxe6 {[%clk 0:00:14]} 33. hxg6 {[%clk 0:00:53]}  hxg6 {[%clk 0:00:14]} 34. Rfd1 {[%clk 0:00:53]}  Rbd8 {[%clk 0:00:09]} 35. Kg2 {[%clk 0:00:49]}  Qc6+ {[%clk 0:00:07]} 36. Bf3 {[%clk 0:00:49]}  Qc7 {[%clk 0:00:08]} 37. Rh1 {[%clk 0:00:48]}  Rf8 {[%clk 0:00:06]} 38. Bg4 {[%clk 0:00:45]}  Qg7 {[%clk 0:00:06]} 39. Rhd1 {[%clk 0:00:42]}  e5 {[%clk 0:00:04]} 40. Rxd6 {[%clk 0:00:37]}  Rxd6 {[%clk 0:00:04]} 41. Rxd6 {[%clk 0:00:37]}  Rxf4 {[%clk 0:00:03]} 42. Qxc5 {[%clk 0:00:29]}  Rxg4+ {[%clk 0:00:02]} 43. Kh3 {[%clk 0:00:30]} 1-0


[Site "https://www.chess.com"]

[Event "Titled Tuesday Blitz March 21 Early 2023"]
[White "Manukian, Artak"]
[Black "Rodriguez Santiago, Jaime"]
[WhiteFideId "13301373"]
[BlackFideId "3100898"]
[WhiteElo "2130"]
[BlackElo "2025"]
[Result "1-0"]
[Round "06"]
[TimeControl "180+2"]
[Date "2023.03.21"]
[WhiteClock "0:00:15"]
[BlackClock "0:00:16"]

1. e4 {[%clk 0:03:00]}  c6 {[%clk 0:02:59]} 2. d4 {[%clk 0:03:00]}  d5 {[%clk 0:02:59]} 3. e5 {[%clk 0:03:00]}  Bf5 {[%clk 0:02:58]} 4. c4 {[%clk 0:03:00]}  e6 {[%clk 0:02:57]} 5. Nc3 {[%clk 0:03:01]}  dxc4 {[%clk 0:02:45]} 6. Bxc4 {[%clk 0:03:00]}  Nd7 {[%clk 0:02:44]} 7. Nf3 {[%clk 0:03:00]}  Nb6 {[%clk 0:02:44]} 8. Bb3 {[%clk 0:03:00]}  Bb4 {[%clk 0:02:44]} 9. O-O {[%clk 0:02:59]}  Ne7 {[%clk 0:02:42]} 10. Nh4 {[%clk 0:02:57]}  O-O {[%clk 0:02:41]} 11. Bg5 {[%clk 0:02:50]}  Bg6 {[%clk 0:02:34]} 12. Rc1 {[%clk 0:02:37]}  Qd7 {[%clk 0:02:14]} 13. Nxg6 {[%clk 0:02:34]}  Nxg6 {[%clk 0:02:12]} 14. a3 {[%clk 0:02:23]}  Be7 {[%clk 0:01:54]} 15. Bxe7 {[%clk 0:02:22]}  Nxe7 {[%clk 0:01:52]} 16. Ne4 {[%clk 0:02:22]}  Nf5 {[%clk 0:01:50]} 17. Qg4 {[%clk 0:02:17]}  Qxd4 {[%clk 0:01:44]} 18. Nf6+ {[%clk 0:01:58]}  Kh8 {[%clk 0:01:42]} 19. Qg5 {[%clk 0:01:47]}  Qxe5 {[%clk 0:01:37]} 20. Ng4 {[%clk 0:01:47]}  Qb5 {[%clk 0:01:31]} 21. Bc2 {[%clk 0:01:43]}  Nh6 {[%clk 0:01:09]} 22. Qh4 {[%clk 0:01:36]}  Qxb2 {[%clk 0:00:51]} 23. Nxh6 {[%clk 0:01:31]}  gxh6 {[%clk 0:00:51]} 24. Qxh6 {[%clk 0:01:23]}  Qg7 {[%clk 0:00:51]} 25. Qf4 {[%clk 0:01:18]}  Rg8 {[%clk 0:00:50]} 26. g3 {[%clk 0:01:15]}  Nd5 {[%clk 0:00:50]} 27. Qe4 {[%clk 0:01:08]}  Rae8 {[%clk 0:00:49]} 28. Rfe1 {[%clk 0:01:04]}  f5 {[%clk 0:00:49]} 29. Qh4 {[%clk 0:00:59]}  f4 {[%clk 0:00:47]} 30. Re5 {[%clk 0:00:55]}  fxg3 {[%clk 0:00:43]} 31. hxg3 {[%clk 0:00:55]}  Nf6 {[%clk 0:00:41]} 32. Kg2 {[%clk 0:00:52]}  Re7 {[%clk 0:00:41]} 33. Rh1 {[%clk 0:00:48]}  Rf8 {[%clk 0:00:38]} 34. Rg5 {[%clk 0:00:44]}  Qf7 {[%clk 0:00:38]} 35. Qd4 {[%clk 0:00:38]}  e5 {[%clk 0:00:37]} 36. Rxe5 {[%clk 0:00:35]}  Rxe5 {[%clk 0:00:37]} 37. Qxe5 {[%clk 0:00:36]}  Qd5+ {[%clk 0:00:36]} 38. Qxd5 {[%clk 0:00:35]}  cxd5 {[%clk 0:00:37]} 39. Re1 {[%clk 0:00:31]}  Rf7 {[%clk 0:00:36]} 40. f3 {[%clk 0:00:28]}  Kg7 {[%clk 0:00:36]} 41. g4 {[%clk 0:00:29]}  Rc7 {[%clk 0:00:36]} 42. Bf5 {[%clk 0:00:28]}  b6 {[%clk 0:00:32]} 43. Kg3 {[%clk 0:00:28]}  Rc3 {[%clk 0:00:25]} 44. g5 {[%clk 0:00:27]}  Nh5+ {[%clk 0:00:24]} 45. Kg4 {[%clk 0:00:26]}  Nf6+ {[%clk 0:00:19]} 46. gxf6+ {[%clk 0:00:26]}  Kxf6 {[%clk 0:00:20]} 47. Re6+ {[%clk 0:00:23]}  Kf7 {[%clk 0:00:19]} 48. Rd6 {[%clk 0:00:21]}  Rxa3 {[%clk 0:00:20]} 49. Rxd5 {[%clk 0:00:20]}  Ra4+ {[%clk 0:00:19]} 50. f4 {[%clk 0:00:21]}  a6 {[%clk 0:00:17]} 51. Bxh7 {[%clk 0:00:20]}  b5 {[%clk 0:00:17]} 52. Bc2 {[%clk 0:00:19]}  Ra2 {[%clk 0:00:17]} 53. Bb3 {[%clk 0:00:20]}  Rb2 {[%clk 0:00:16]} 54. Rxb5+ {[%clk 0:00:20]}  Ke7 {[%clk 0:00:14]} 55. Rb7+ {[%clk 0:00:19]}  Kd6 {[%clk 0:00:14]} 56. Bd5 {[%clk 0:00:17]}  Rd2 {[%clk 0:00:12]} 57. Bf3 {[%clk 0:00:17]}  a5 {[%clk 0:00:13]} 58. Ra7 {[%clk 0:00:16]}  Ra2 {[%clk 0:00:13]} 59. f5 {[%clk 0:00:17]}  a4 {[%clk 0:00:14]} 60. f6 {[%clk 0:00:17]}  Ra1 {[%clk 0:00:14]} 61. f7 {[%clk 0:00:16]}  Rg1+ {[%clk 0:00:15]} 62. Kf5 {[%clk 0:00:17]}  Rg7 {[%clk 0:00:15]} 63. Kf6 {[%clk 0:00:15]}  Rxf7+ {[%clk 0:00:15]} 64. Kxf7 {[%clk 0:00:15]}  a3 {[%clk 0:00:16]} 65. Rxa3 {[%clk 0:00:15]} 1-0


[Site "https://www.chess.com"]

[Event "Titled Tuesday Blitz March 21 Early 2023"]
[White "Fajdetic, Hrvoje"]
[Black "Baches Garcia, Guillermo"]
[WhiteFideId "14501945"]
[BlackFideId "2209764"]
[WhiteElo "2185"]
[BlackElo "2444"]
[Result "1/2-1/2"]
[Round "06"]
[TimeControl "180+2"]
[Date "2023.03.21"]
[WhiteClock "0:00:39"]
[BlackClock "0:00:40"]

1. f4 {[%clk 0:02:54]}  d5 {[%clk 0:02:59]} 2. Nf3 {[%clk 0:02:54]}  g6 {[%clk 0:02:59]} 3. e3 {[%clk 0:02:54]}  Bg7 {[%clk 0:03:00]} 4. Be2 {[%clk 0:02:53]}  Nh6 {[%clk 0:03:00]} 5. d3 {[%clk 0:02:51]}  O-O {[%clk 0:02:59]} 6. c3 {[%clk 0:02:51]}  c6 {[%clk 0:02:55]} 7. e4 {[%clk 0:02:49]}  Qb6 {[%clk 0:02:48]} 8. e5 {[%clk 0:02:11]}  Bg4 {[%clk 0:02:35]} 9. d4 {[%clk 0:02:08]}  c5 {[%clk 0:02:25]} 10. Qb3 {[%clk 0:01:42]}  Qc6 {[%clk 0:01:57]} 11. Na3 {[%clk 0:01:36]}  Nf5 {[%clk 0:01:53]} 12. Nc2 {[%clk 0:01:31]}  cxd4 {[%clk 0:01:40]} 13. Ncxd4 {[%clk 0:01:29]}  Qd7 {[%clk 0:01:36]} 14. Nxf5 {[%clk 0:01:19]}  Bxf5 {[%clk 0:01:31]} 15. O-O {[%clk 0:01:19]}  Nc6 {[%clk 0:01:31]} 16. Be3 {[%clk 0:01:18]}  Rad8 {[%clk 0:01:26]} 17. Nd4 {[%clk 0:01:17]}  Be4 {[%clk 0:01:22]} 18. Bf3 {[%clk 0:01:13]}  Bxf3 {[%clk 0:01:15]} 19. Rxf3 {[%clk 0:01:14]}  e6 {[%clk 0:01:12]} 20. g4 {[%clk 0:01:10]}  f6 {[%clk 0:01:09]} 21. Nxc6 {[%clk 0:00:57]}  bxc6 {[%clk 0:01:06]} 22. exf6 {[%clk 0:00:57]}  Bxf6 {[%clk 0:01:01]} 23. Raf1 {[%clk 0:00:55]}  e5 {[%clk 0:00:56]} 24. f5 {[%clk 0:00:52]}  Kg7 {[%clk 0:00:43]} 25. g5 {[%clk 0:00:47]}  gxf5 {[%clk 0:00:41]} 26. gxf6+ {[%clk 0:00:45]}  Rxf6 {[%clk 0:00:42]} 27. Rg3+ {[%clk 0:00:39]}  Rg6 {[%clk 0:00:40]} 1/2-1/2


[Site "https://www.chess.com"]

[Event "Titled Tuesday Blitz March 21 Early 2023"]
[White "Barria Santos, Jose Guilherme"]
[Black "Bilan, Danila"]
[WhiteFideId "1939300"]
[BlackFideId "24161918"]
[WhiteElo "2301"]
[BlackElo "2182"]
[Result "0-1"]
[Round "06"]
[TimeControl "180+2"]
[Date "2023.03.21"]
[WhiteClock "0:00:02"]
[BlackClock "0:00:08"]

1. e4 {[%clk 0:03:00]}  c6 {[%clk 0:03:00]} 2. d4 {[%clk 0:03:00]}  d5 {[%clk 0:03:01]} 3. f3 {[%clk 0:03:01]}  dxe4 {[%clk 0:02:58]} 4. fxe4 {[%clk 0:03:01]}  e5 {[%clk 0:02:57]} 5. Nf3 {[%clk 0:03:02]}  Be6 {[%clk 0:02:51]} 6. Nc3 {[%clk 0:02:38]}  Nd7 {[%clk 0:02:38]} 7. dxe5 {[%clk 0:02:34]}  Qc7 {[%clk 0:02:29]} 8. Be3 {[%clk 0:02:32]}  Nxe5 {[%clk 0:02:24]} 9. Be2 {[%clk 0:02:30]}  Nf6 {[%clk 0:02:07]} 10. O-O {[%clk 0:02:30]}  Nfg4 {[%clk 0:01:51]} 11. Bf4 {[%clk 0:02:17]}  Qb6+ {[%clk 0:01:25]} 12. Kh1 {[%clk 0:02:10]}  Nxf3 {[%clk 0:01:26]} 13. Bxf3 {[%clk 0:01:27]}  Nf2+ {[%clk 0:01:24]} 14. Rxf2 {[%clk 0:01:27]}  Qxf2 {[%clk 0:01:25]} 15. Qc1 {[%clk 0:01:22]}  Qb6 {[%clk 0:01:07]} 16. Be3 {[%clk 0:01:19]}  Qc7 {[%clk 0:00:59]} 17. Qg1 {[%clk 0:01:15]}  Bd6 {[%clk 0:00:57]} 18. g3 {[%clk 0:01:13]}  O-O {[%clk 0:00:49]} 19. Rd1 {[%clk 0:01:12]}  b6 {[%clk 0:00:43]} 20. Ne2 {[%clk 0:00:21]}  Rad8 {[%clk 0:00:29]} 21. Nf4 {[%clk 0:00:18]}  Bc8 {[%clk 0:00:21]} 22. Nd3 {[%clk 0:00:13]}  Rfe8 {[%clk 0:00:17]} 23. Bd4 {[%clk 0:00:11]}  c5 {[%clk 0:00:17]} 24. Bc3 {[%clk 0:00:11]}  Bb7 {[%clk 0:00:17]} 25. Nf2 {[%clk 0:00:11]}  Be5 {[%clk 0:00:16]} 26. Bxe5 {[%clk 0:00:10]}  Qxe5 {[%clk 0:00:15]} 27. Ng4 {[%clk 0:00:08]}  Qxe4 {[%clk 0:00:08]} 28. Bxe4 {[%clk 0:00:03]}  Bxe4+ {[%clk 0:00:08]} 29. Qg2 {[%clk 0:00:02]}  Rxd1# {[%clk 0:00:08]} 0-1


[Site "https://www.chess.com"]